[Event "Live Chess"]
[Site "Chess.com"]
[Date "2020.09.22"]
[Round "6"]
[White "nicarmt"]
[Black "chessappeals"]
[Result "1-0"]
[ECO "B06"]
[WhiteElo "1883"]
[BlackElo "1783"]
[TimeControl "2100+2"]
[EndTime "21:14:08 PDT"]
[Termination "nicarmt won on time"]

1. e4 {[%clk 0:35:00.7]} 1... c6 {[%clk 0:34:55.7]} 2. d4 {[%clk 0:34:58.4]}
2... g6 {[%clk 0:34:51.6]} 3. f3 {[%clk 0:34:56.5]} 3... Bg7 {[%clk 0:34:48.8]}
4. Be3 {[%clk 0:34:37.4]} 4... d5 {[%clk 0:34:29.8]} 5. Nc3 {[%clk 0:33:51.4]}
5... dxe4 {[%clk 0:33:54.7]} 6. fxe4 {[%clk 0:33:41.4]} 6... Nf6 {[%clk
0:33:14]} 7. Nf3 {[%clk 0:33:37.7]} 7... O-O {[%clk 0:32:47.3]} 8. Be2 {[%clk
0:33:25.7]} 8... b6 {[%clk 0:31:31.3]} 9. O-O {[%clk 0:32:13.9]} 9... Ba6 {[%clk
0:30:20.5]} 10. Bd3 {[%clk 0:30:34.2]} 10... Ng4 {[%clk 0:28:21.1]} 11. Qe2
{[%clk 0:29:57.2]} 11... Nxe3 {[%clk 0:23:46.5]} 12. Qxe3 {[%clk 0:29:51.4]}
12... Bxd3 {[%clk 0:23:28.2]} 13. cxd3 {[%clk 0:29:21.1]} 13... Nd7 {[%clk
0:23:16.3]} 14. Rac1 {[%clk 0:28:36.8]} 14... c5 {[%clk 0:21:37.7]} 15. Ne2
{[%clk 0:27:11.6]} 15... cxd4 {[%clk 0:20:43.1]} 16. Nexd4 {[%clk 0:25:42.4]}
16... Ne5 {[%clk 0:18:42.3]} 17. Nxe5 {[%clk 0:25:13.2]} 17... Bxe5 {[%clk
0:18:39.3]} 18. Nc6 {[%clk 0:25:13.2]} 18... Qd6 {[%clk 0:18:23.8]} 19. Nxe5
{[%clk 0:24:58.9]} 19... Qxe5 {[%clk 0:18:20.2]} 20. Rc3 {[%clk 0:24:50.6]}
20... Rac8 {[%clk 0:17:33]} 21. Rfc1 {[%clk 0:24:42.1]} 21... Rxc3 {[%clk
0:16:54.7]} 22. Rxc3 {[%clk 0:24:35.9]} 22... Rd8 {[%clk 0:16:22.8]} 23. Rc2
{[%clk 0:22:06.7]} 23... Qd4 {[%clk 0:15:40.8]} 24. Qxd4 {[%clk 0:21:44.7]}
24... Rxd4 {[%clk 0:15:38.2]} 25. Rc3 {[%clk 0:21:16.3]} 25... Kg7 {[%clk
0:14:29.4]} 26. Kf2 {[%clk 0:21:15.5]} 26... Kf6 {[%clk 0:13:07]} 27. Ke3 {[%clk
0:21:06.3]} 27... e5 {[%clk 0:11:18.1]} 28. a3 {[%clk 0:20:25.5]} 28... Rd6
{[%clk 0:10:26.4]} 29. Rc4 {[%clk 0:18:37.7]} 29... Ke6 {[%clk 0:08:58.7]} 30.
Rc8 {[%clk 0:17:00.1]} 30... h5 {[%clk 0:05:33.4]} 31. Re8+ {[%clk 0:16:09.2]}
31... Kf6 {[%clk 0:05:28.8]} 32. Rc8 {[%clk 0:15:43.8]} 32... Ke6 {[%clk
0:04:50.5]} 33. b4 {[%clk 0:14:33.4]} 33... b5 {[%clk 0:03:35.4]} 34. Rc5 {[%clk
0:13:47.7]} 34... a6 {[%clk 0:03:21.3]} 35. Rc1 {[%clk 0:12:43.7]} 35... f5
{[%clk 0:02:54.4]} 36. g3 {[%clk 0:12:08.4]} 36... fxe4 {[%clk 0:02:08.5]} 37.
dxe4 {[%clk 0:11:55.4]} 37... Kf6 {[%clk 0:02:00.5]} 38. Rc8 {[%clk 0:11:28.5]}
38... Kg5 {[%clk 0:01:51.4]} 39. Rc5 {[%clk 0:11:17.2]} 39... Kf6 {[%clk
0:01:50.6]} 40. h4 {[%clk 0:11:08.9]} 40... Ke6 {[%clk 0:01:47.2]} 41. Rc8
{[%clk 0:11:07.6]} 41... Kf6 {[%clk 0:01:44.3]} 42. Rf8+ {[%clk 0:10:57.9]}
42... Ke7 {[%clk 0:01:38.2]} 43. Rc8 {[%clk 0:10:49]} 43... Ke6 {[%clk
0:01:36.8]} 44. Rc5 {[%clk 0:10:39.2]} 44... Kf6 {[%clk 0:01:35.6]} 45. Rc7
{[%clk 0:10:16.8]} 45... Ke6 {[%clk 0:01:33.7]} 46. Rc1 {[%clk 0:10:13.8]} 46...
Kf6 {[%clk 0:01:30.2]} 47. Rc3 {[%clk 0:10:02.2]} 47... Ke6 {[%clk 0:01:28]} 48.
Rc8 {[%clk 0:09:41]} 48... Kf6 {[%clk 0:01:26.2]} 49. Rg8 {[%clk 0:09:31.6]}
49... Kf7 {[%clk 0:01:23.1]} 50. Rc8 {[%clk 0:09:23.7]} 50... Ke6 {[%clk
0:01:10.9]} 51. Rc7 {[%clk 0:09:21.2]} 51... Kf6 {[%clk 0:01:10.1]} 52. Rc2
{[%clk 0:09:12.8]} 52... Ke6 {[%clk 0:01:09.2]} 53. Rc3 {[%clk 0:08:54]} 53...
Kf6 {[%clk 0:01:07]} 54. Rd3 {[%clk 0:08:30.3]} 54... Rc6 {[%clk 0:01:02.6]} 55.
Kf3 {[%clk 0:08:09.9]} 55... Ke6 {[%clk 0:00:59.4]} 56. Ke3 {[%clk 0:08:02.4]}
56... Kf6 {[%clk 0:00:56.6]} 57. Kd2 {[%clk 0:07:48.3]} 57... Ke6 {[%clk
0:00:56.1]} 58. Rd8 {[%clk 0:07:42.3]} 58... Rc4 {[%clk 0:00:48.3]} 59. Kd3
{[%clk 0:07:33.8]} 59... Rc6 {[%clk 0:00:42.4]} 60. Rg8 {[%clk 0:07:19.4]} 60...
Kf7 {[%clk 0:00:40.1]} 61. Ra8 {[%clk 0:07:16.4]} 61... Ke6 {[%clk 0:00:39]} 62.
Rd8 {[%clk 0:07:12.8]} 62... Kf6 {[%clk 0:00:37.5]} 63. Rd5 {[%clk 0:07:10.8]}
63... Ke6 {[%clk 0:00:35.4]} 64. Ke3 {[%clk 0:06:58.9]} 64... Kf6 {[%clk
0:00:35.6]} 65. Rd3 {[%clk 0:06:49]} 65... Ke6 {[%clk 0:00:35.7]} 66. Kf3 {[%clk
0:06:46.6]} 66... Kf6 {[%clk 0:00:36]} 67. g4 {[%clk 0:06:31.7]} 67... hxg4+
{[%clk 0:00:33.3]} 68. Kxg4 {[%clk 0:06:31.8]} 68... Rc4 {[%clk 0:00:28.7]} 69.
Re3 {[%clk 0:05:59.5]} 69... Kg7 {[%clk 0:00:22.3]} 70. Kg5 {[%clk 0:05:56.6]}
70... Rc6 {[%clk 0:00:19.9]} 71. Rd3 {[%clk 0:05:53.4]} 71... Re6 {[%clk
0:00:18.2]} 72. Rd7+ {[%clk 0:05:51]} 72... Kg8 {[%clk 0:00:13.1]} 73. Rd8+
{[%clk 0:05:36.9]} 73... Kf7 {[%clk 0:00:12.7]} 74. Rd7+ {[%clk 0:05:35.7]}
74... Kg8 {[%clk 0:00:11.3]} 75. Kh6 {[%clk 0:05:14.9]} 75... Kf8 {[%clk
0:00:07.2]} 76. Rd8+ {[%clk 0:04:46.1]} 76... Ke7 {[%clk 0:00:03.9]} 77. Rg8
{[%clk 0:04:44.9]} 77... Kf7 {[%clk 0:00:02.7]} 78. Rg7+ {[%clk 0:04:44.7]} 1-0

[Event "Live Chess"]
[Site "Chess.com"]
[Date "2020.09.22"]
[Round "6"]
[White "ninjaforce"]
[Black "ahyanzaman"]
[Result "1-0"]
[ECO "B56"]
[WhiteElo "1958"]
[BlackElo "1699"]
[TimeControl "2100+2"]
[EndTime "20:20:05 PDT"]
[Termination "ninjaforce won by resignation"]

1. e4 {[%clk 0:34:59]} 1... c5 {[%clk 0:34:59.1]} 2. Nf3 {[%clk 0:34:54.9]} 2...
Nc6 {[%clk 0:34:58.7]} 3. d4 {[%clk 0:34:50.5]} 3... cxd4 {[%clk 0:35:00.1]} 4.
Nxd4 {[%clk 0:34:51.6]} 4... Nf6 {[%clk 0:34:55.1]} 5. Nc3 {[%clk 0:34:51.9]}
5... d6 {[%clk 0:34:45.8]} 6. Bc4 {[%clk 0:34:49.7]} 6... g6 {[%clk 0:34:43.4]}
7. f3 {[%clk 0:34:41.1]} 7... Bg7 {[%clk 0:34:41.7]} 8. Be3 {[%clk 0:34:42.3]}
8... Qb6 {[%clk 0:34:02.4]} 9. Bb5 {[%clk 0:32:38.3]} 9... a6 {[%clk 0:32:46.4]}
10. Nf5 {[%clk 0:31:49.8]} 10... Qa5 {[%clk 0:32:20.1]} 11. Bxc6+ {[%clk
0:31:24.2]} 11... bxc6 {[%clk 0:32:20.3]} 12. Nxg7+ {[%clk 0:31:25]} 12... Kd7
{[%clk 0:31:52.7]} 13. O-O {[%clk 0:30:33.5]} 13... Rg8 {[%clk 0:31:41.2]} 14.
Bh6 {[%clk 0:30:33.7]} 14... Qh5 {[%clk 0:29:42.3]} 15. Qd2 {[%clk 0:28:02.9]}
15... Qh4 {[%clk 0:27:36.5]} 16. Bg5 {[%clk 0:27:50.2]} 16... Nxe4 {[%clk
0:26:32.1]} 17. Nxe4 {[%clk 0:27:46.7]} 1-0

[Event "Live Chess"]
[Site "Chess.com"]
[Date "2020.09.22"]
[Round "6"]
[White "noydan100"]
[Black "draidus"]
[Result "1-0"]
[ECO "C24"]
[WhiteElo "1235"]
[BlackElo "1499"]
[TimeControl "2100+2"]
[EndTime "20:43:57 PDT"]
[Termination "noydan100 won by resignation"]

1. e4 {[%clk 0:34:53.3]} 1... e5 {[%clk 0:34:55.1]} 2. Bc4 {[%clk 0:34:24.6]}
2... Nf6 {[%clk 0:34:48.5]} 3. d4 {[%clk 0:34:24.4]} 3... Nc6 {[%clk 0:32:51.8]}
4. d5 {[%clk 0:33:57.2]} 4... Na5 {[%clk 0:32:23.8]} 5. Bd3 {[%clk 0:33:54.4]}
5... b6 {[%clk 0:31:55.3]} 6. f4 {[%clk 0:32:59.6]} 6... Bd6 {[%clk 0:31:11.4]}
7. Nf3 {[%clk 0:31:50.4]} 7... exf4 {[%clk 0:31:07.9]} 8. e5 {[%clk 0:31:05.3]}
8... Bxe5 {[%clk 0:28:07.7]} 9. Nxe5 {[%clk 0:31:00.1]} 9... Nxd5 {[%clk
0:28:02.2]} 10. Qh5 {[%clk 0:27:09.4]} 10... Qe7 {[%clk 0:27:25.4]} 11. O-O
{[%clk 0:25:10.8]} 11... g5 {[%clk 0:20:20.7]} 12. Nf3 {[%clk 0:20:25]} 12...
Qc5+ {[%clk 0:19:47.2]} 13. Kh1 {[%clk 0:20:12.6]} 13... Nf6 {[%clk 0:13:46.1]}
14. Re1+ {[%clk 0:19:04.5]} 14... Kf8 {[%clk 0:12:50.3]} 15. Qh6+ {[%clk
0:18:41.5]} 1-0

[Event "Live Chess"]
[Site "Chess.com"]
[Date "2020.09.22"]
[Round "6"]
[White "pika0008"]
[Black "etvat"]
[Result "1-0"]
[ECO "A15"]
[WhiteElo "1607"]
[BlackElo "2120"]
[TimeControl "2100+2"]
[EndTime "21:11:07 PDT"]
[Termination "pika0008 won on time"]

1. Nf3 {[%clk 0:35:01.9]} 1... Nf6 {[%clk 0:34:56.6]} 2. c4 {[%clk 0:34:59]}
2... e6 {[%clk 0:34:50.9]} 3. Nc3 {[%clk 0:34:56.6]} 3... d5 {[%clk 0:34:44.6]}
4. e3 {[%clk 0:34:44.2]} 4... c6 {[%clk 0:34:41.6]} 5. b3 {[%clk 0:34:44.2]}
5... Nbd7 {[%clk 0:34:28.2]} 6. Bb2 {[%clk 0:34:44.7]} 6... Be7 {[%clk
0:34:23.1]} 7. Be2 {[%clk 0:34:36.8]} 7... O-O {[%clk 0:34:17.5]} 8. Rg1 {[%clk
0:34:22.9]} 8... Ne4 {[%clk 0:33:54]} 9. d3 {[%clk 0:33:44]} 9... Nxc3 {[%clk
0:32:55.2]} 10. Bxc3 {[%clk 0:33:17.8]} 10... Bf6 {[%clk 0:32:22.6]} 11. d4
{[%clk 0:32:50.1]} 11... Re8 {[%clk 0:31:54.5]} 12. g4 {[%clk 0:32:15.9]} 12...
h6 {[%clk 0:31:47]} 13. Qc2 {[%clk 0:31:55.5]} 13... Qc7 {[%clk 0:31:29.2]} 14.
O-O-O {[%clk 0:30:48.6]} 14... Qd8 {[%clk 0:30:13.1]} 15. Rg2 {[%clk 0:30:10.5]}
15... b6 {[%clk 0:29:31]} 16. Rdg1 {[%clk 0:29:56.9]} 16... g5 {[%clk
0:28:04.9]} 17. h4 {[%clk 0:29:01.3]} 17... Nf8 {[%clk 0:26:37.9]} 18. Ne5
{[%clk 0:27:33.1]} 18... Bxe5 {[%clk 0:25:07.2]} 19. dxe5 {[%clk 0:27:31.8]}
19... Ng6 {[%clk 0:24:24]} 20. h5 {[%clk 0:26:35]} 20... Nf8 {[%clk 0:23:24.8]}
21. f4 {[%clk 0:24:16.7]} 21... Bb7 {[%clk 0:18:51.6]} 22. fxg5 {[%clk
0:23:06.6]} 22... Qxg5 {[%clk 0:18:32.6]} 23. Bd2 {[%clk 0:22:44.6]} 23... Nd7
{[%clk 0:16:20.8]} 24. Kb1 {[%clk 0:19:11]} 24... c5 {[%clk 0:13:29.8]} 25. e4
{[%clk 0:18:01.9]} 25... Qxe5 {[%clk 0:12:30.4]} 26. g5 {[%clk 0:17:43.7]} 26...
d4 {[%clk 0:11:55.4]} 27. Bd3 {[%clk 0:17:09.3]} 27... Kh8 {[%clk 0:11:13.8]}
28. Bc1 {[%clk 0:14:08.8]} 28... a6 {[%clk 0:05:06.1]} 29. Rf1 {[%clk
0:11:33.7]} 29... Qd6 {[%clk 0:02:02.9]} 30. Rxf7 {[%clk 0:10:29.2]} 30... Ne5
{[%clk 0:01:00.8]} 31. Qf2 {[%clk 0:09:33.5]} 31... Qd8 {[%clk 0:00:39.5]} 32.
g6 {[%clk 0:07:26.1]} 32... Kg8 {[%clk 0:00:20.3]} 33. Qf4 {[%clk 0:04:10.7]}
33... Nxd3 {[%clk 0:00:02.2]} 34. Qxh6 {[%clk 0:04:02.2]} 1-0

[Event "Live Chess"]
[Site "Chess.com"]
[Date "2020.09.22"]
[Round "6"]
[White "starserika18"]
[Black "SaintReturns"]
[Result "0-1"]
[ECO "D02"]
[WhiteElo "1693"]
[BlackElo "823"]
[TimeControl "2100+2"]
[EndTime "20:53:50 PDT"]
[Termination "SaintReturns won by resignation"]

1. d4 {[%clk 0:35:00.5]} 1... d5 {[%clk 0:34:56.1]} 2. Nf3 {[%clk 0:34:55.8]}
2... Nf6 {[%clk 0:34:24.8]} 3. Bf4 {[%clk 0:34:54.5]} 3... Bf5 {[%clk
0:33:47.5]} 4. Nbd2 {[%clk 0:34:53.4]} 4... e6 {[%clk 0:33:34.7]} 5. e3 {[%clk
0:34:52.6]} 5... Bd6 {[%clk 0:33:18.2]} 6. Bg3 {[%clk 0:34:49.9]} 6... Nc6
{[%clk 0:32:57.8]} 7. a3 {[%clk 0:34:49.4]} 7... a6 {[%clk 0:31:38.2]} 8. Rc1
{[%clk 0:34:44.1]} 8... O-O {[%clk 0:31:27]} 9. c4 {[%clk 0:34:41.7]} 9... Bg4
{[%clk 0:29:57.9]} 10. c5 {[%clk 0:34:36.2]} 10... Be7 {[%clk 0:29:53.5]} 11.
Be2 {[%clk 0:34:33.5]} 11... Qd7 {[%clk 0:27:29.5]} 12. h3 {[%clk 0:34:27]}
12... Bh5 {[%clk 0:27:24.7]} 13. Qc2 {[%clk 0:34:19.6]} 13... Rac8 {[%clk
0:27:03]} 14. Bh4 {[%clk 0:34:09.7]} 14... b6 {[%clk 0:26:46.8]} 15. Bxf6 {[%clk
0:34:00.6]} 15... Bxf6 {[%clk 0:26:41]} 16. Ne5 {[%clk 0:33:41.7]} 16... Bxe5
{[%clk 0:26:07.9]} 17. Bxh5 {[%clk 0:33:35.1]} 17... Bf6 {[%clk 0:25:51.5]} 18.
Be2 {[%clk 0:33:31.6]} 18... e5 {[%clk 0:25:16.9]} 19. Bg4 {[%clk 0:33:16.7]}
19... Qe7 {[%clk 0:24:07.9]} 20. Bxc8 {[%clk 0:33:15.6]} 20... Rxc8 {[%clk
0:24:00.6]} 21. cxb6 {[%clk 0:33:15.2]} 21... cxb6 {[%clk 0:23:32.6]} 22. dxe5
{[%clk 0:33:13.9]} 22... Bxe5 {[%clk 0:23:10.9]} 23. Nf3 {[%clk 0:33:09.8]}
23... d4 {[%clk 0:23:00.3]} 24. Qf5 {[%clk 0:32:54.2]} 24... Rc7 {[%clk
0:21:17.4]} 25. O-O {[%clk 0:32:40.1]} 25... dxe3 {[%clk 0:20:41.4]} 26. fxe3
{[%clk 0:32:32.5]} 26... Bxb2 {[%clk 0:20:24.7]} 27. Rce1 {[%clk 0:32:20.9]}
27... Bxa3 {[%clk 0:20:15.3]} 28. Nd4 {[%clk 0:32:12.3]} 28... Ne5 {[%clk
0:19:23.3]} 29. Nf3 {[%clk 0:31:18.6]} 29... Nxf3+ {[%clk 0:18:59.2]} 30. Qxf3
{[%clk 0:31:15.9]} 30... Rc8 {[%clk 0:18:50.2]} 31. Re2 {[%clk 0:30:58.5]} 31...
Bc5 {[%clk 0:18:20.8]} 32. Kh1 {[%clk 0:30:51.1]} 32... Re8 {[%clk 0:17:50.2]}
33. e4 {[%clk 0:30:48.7]} 33... a5 {[%clk 0:17:04.4]} 34. Qf5 {[%clk 0:30:41.5]}
34... a4 {[%clk 0:16:34.6]} 35. e5 {[%clk 0:30:38.9]} 35... a3 {[%clk 0:15:41]}
36. Qb1 {[%clk 0:29:53.1]} 36... Rb8 {[%clk 0:14:58.7]} 37. Qb3 {[%clk
0:29:38.7]} 37... Qe6 {[%clk 0:14:34.4]} 38. Qa4 {[%clk 0:28:43.5]} 38... b5
{[%clk 0:13:55.4]} 39. Qa5 {[%clk 0:28:38.5]} 39... Qc4 {[%clk 0:13:28.9]} 40.
Qc7 {[%clk 0:27:28.5]} 40... Ra8 {[%clk 0:12:36.2]} 41. Qb7 {[%clk 0:24:37.6]}
41... Qxe2 {[%clk 0:10:45.6]} 42. Qxa8+ {[%clk 0:24:36.3]} 42... Bf8 {[%clk
0:10:41.2]} 43. Ra1 {[%clk 0:22:48.1]} 43... b4 {[%clk 0:10:20]} 44. Qd5 {[%clk
0:22:18.8]} 44... Qc2 {[%clk 0:07:58.2]} 45. e6 {[%clk 0:21:46.1]} 45... Qg6
{[%clk 0:06:26.7]} 46. Re1 {[%clk 0:20:23.2]} 46... fxe6 {[%clk 0:06:01]} 47.
Rxe6 {[%clk 0:20:05]} 47... Qb1+ {[%clk 0:05:56.2]} 48. Kh2 {[%clk 0:20:04.8]}
48... Kh8 {[%clk 0:03:59.9]} 49. Qf5 {[%clk 0:19:50.6]} 49... Qxf5 {[%clk
0:03:53.6]} 0-1

[Event "Live Chess"]
[Site "Chess.com"]
[Date "2020.09.22"]
[Round "6"]
[White "swimgrass"]
[Black "echecsmike"]
[Result "1-0"]
[ECO "A13"]
[WhiteElo "1363"]
[BlackElo "1446"]
[TimeControl "2100+2"]
[EndTime "20:27:10 PDT"]
[Termination "swimgrass won by resignation"]

1. c4 {[%clk 0:34:58.3]} 1... e6 {[%clk 0:34:51.7]} 2. g3 {[%clk 0:34:56.4]}
2... Nf6 {[%clk 0:34:47.5]} 3. Bg2 {[%clk 0:34:56.2]} 3... d5 {[%clk 0:34:40.9]}
4. cxd5 {[%clk 0:34:52.9]} 4... exd5 {[%clk 0:34:34.2]} 5. d4 {[%clk 0:34:53.2]}
5... Bg4 {[%clk 0:32:47.5]} 6. Nf3 {[%clk 0:34:48.9]} 6... Bd6 {[%clk
0:32:30.8]} 7. Nc3 {[%clk 0:34:38.8]} 7... c6 {[%clk 0:32:06.2]} 8. Bg5 {[%clk
0:34:23.5]} 8... Nbd7 {[%clk 0:32:01.1]} 9. e4 {[%clk 0:34:03.4]} 9... dxe4
{[%clk 0:31:33.6]} 10. Qe2 {[%clk 0:33:49.6]} 10... Qa5 {[%clk 0:30:30.7]} 11.
O-O {[%clk 0:33:37.9]} 11... Bf5 {[%clk 0:29:11.2]} 12. Nh4 {[%clk 0:33:28.5]}
12... O-O {[%clk 0:28:39.7]} 13. Nxf5 {[%clk 0:33:24.8]} 13... Qxf5 {[%clk
0:28:33.9]} 14. Nxe4 {[%clk 0:33:21.1]} 14... Rfe8 {[%clk 0:28:14.4]} 15. Nxf6+
{[%clk 0:33:16.1]} 15... Nxf6 {[%clk 0:28:09.6]} 16. Qd2 {[%clk 0:33:14.5]}
16... Nd5 {[%clk 0:27:08.3]} 17. Rfe1 {[%clk 0:33:02.6]} 17... Bb4 {[%clk
0:24:43.5]} 18. Rxe8+ {[%clk 0:32:41.4]} 18... Rxe8 {[%clk 0:24:41]} 19. Qc1
{[%clk 0:32:17.9]} 19... Re1+ {[%clk 0:23:23.6]} 20. Qxe1 {[%clk 0:32:12.4]}
20... Bxe1 {[%clk 0:23:21.6]} 21. Rxe1 {[%clk 0:32:14.3]} 21... Kf8 {[%clk
0:22:57.3]} 22. Bh4 {[%clk 0:31:58.1]} 22... Qc2 {[%clk 0:22:51.6]} 23. Bh3
{[%clk 0:31:44.6]} 23... Qxb2 {[%clk 0:22:42.4]} 24. Bd7 {[%clk 0:31:36]} 24...
f6 {[%clk 0:21:53.4]} 25. Be8 {[%clk 0:31:20.5]} 25... g5 {[%clk 0:21:15]} 26.
Bxg5 {[%clk 0:31:11.1]} 26... fxg5 {[%clk 0:21:12.4]} 27. Bh5 {[%clk 0:30:59.9]}
27... Ne7 {[%clk 0:20:34.1]} 28. Re6 {[%clk 0:30:42.8]} 28... Qxd4 {[%clk
0:20:17.1]} 29. Kf1 {[%clk 0:30:34.7]} 29... Qd1+ {[%clk 0:19:48.8]} 30. Bxd1
{[%clk 0:30:30.3]} 30... Kf7 {[%clk 0:19:32.4]} 31. Rh6 {[%clk 0:30:29.6]} 31...
Kg7 {[%clk 0:19:29.1]} 32. Rh5 {[%clk 0:30:30.5]} 32... h6 {[%clk 0:19:27.7]}
33. f4 {[%clk 0:30:28.2]} 33... gxf4 {[%clk 0:19:25.2]} 34. gxf4 {[%clk
0:30:30.1]} 34... c5 {[%clk 0:19:23.9]} 35. Rxc5 {[%clk 0:30:28.5]} 1-0

[Event "Live Chess"]
[Site "Chess.com"]
[Date "2020.09.22"]
[Round "6"]
[White "victor6688"]
[Black "chesspoki"]
[Result "0-1"]
[ECO "C44"]
[WhiteElo "1054"]
[BlackElo "1331"]
[TimeControl "2100+2"]
[EndTime "20:38:25 PDT"]
[Termination "chesspoki won by checkmate"]

1. e4 {[%clk 0:34:59.6]} 1... e5 {[%clk 0:34:59.2]} 2. Nf3 {[%clk 0:34:58.2]}
2... Nc6 {[%clk 0:34:57.4]} 3. d4 {[%clk 0:34:57.1]} 3... exd4 {[%clk 0:34:57]}
4. Bc4 {[%clk 0:34:57.2]} 4... Bc5 {[%clk 0:34:41.9]} 5. c3 {[%clk 0:34:55.5]}
5... dxc3 {[%clk 0:34:39.7]} 6. Bxf7+ {[%clk 0:34:54.1]} 6... Kxf7 {[%clk
0:34:36]} 7. Qd5+ {[%clk 0:34:55]} 7... Ke8 {[%clk 0:34:35.7]} 8. Qxc5 {[%clk
0:34:55.7]} 8... Nf6 {[%clk 0:34:18.2]} 9. Nxc3 {[%clk 0:34:46.3]} 9... d6
{[%clk 0:34:18.2]} 10. Qg5 {[%clk 0:34:03.1]} 10... Kf7 {[%clk 0:33:58]} 11. h3
{[%clk 0:32:58.8]} 11... Re8 {[%clk 0:33:44]} 12. Qf4 {[%clk 0:32:07]} 12... Kg8
{[%clk 0:33:06.1]} 13. O-O {[%clk 0:31:41.4]} 13... Ne5 {[%clk 0:31:59]} 14. Be3
{[%clk 0:30:11.7]} 14... Nd3 {[%clk 0:30:17.7]} 15. Qg3 {[%clk 0:29:10.8]} 15...
Nxe4 {[%clk 0:29:58.6]} 16. Nxe4 {[%clk 0:28:35.2]} 16... Rxe4 {[%clk
0:29:58.1]} 17. Bh6 {[%clk 0:28:28.2]} 17... Qf6 {[%clk 0:29:40.1]} 18. Ng5
{[%clk 0:27:15.2]} 18... Rd4 {[%clk 0:29:17.2]} 19. Qe3 {[%clk 0:26:41]} 19...
gxh6 {[%clk 0:28:19.2]} 20. Ne4 {[%clk 0:25:22.8]} 20... Qe5 {[%clk 0:27:58.8]}
21. Rad1 {[%clk 0:24:29.9]} 21... Bf5 {[%clk 0:27:42.1]} 22. Ng3 {[%clk
0:23:04.5]} 22... Bg6 {[%clk 0:26:00.5]} 23. Qxh6 {[%clk 0:22:12.9]} 23... Rf8
{[%clk 0:25:33.8]} 24. Rd2 {[%clk 0:21:37.1]} 24... Rdf4 {[%clk 0:24:28.7]} 25.
Re2 {[%clk 0:20:25.4]} 25... Qc5 {[%clk 0:23:52]} 26. Re7 {[%clk 0:20:12.6]}
26... R4f7 {[%clk 0:23:40.3]} 27. Re2 {[%clk 0:19:23.9]} 27... Rxf2 {[%clk
0:22:58.2]} 28. Rexf2 {[%clk 0:18:52.6]} 28... Rxf2 {[%clk 0:22:51.5]} 29. Rxf2
{[%clk 0:18:10.9]} 29... Qxf2+ {[%clk 0:22:44.8]} 30. Kh2 {[%clk 0:18:10.3]}
30... Ne1 {[%clk 0:22:30.7]} 31. Qd2 {[%clk 0:16:12.6]} 31... Qxd2 {[%clk
0:22:29.6]} 32. Nf1 {[%clk 0:15:35]} 32... Qxg2# {[%clk 0:22:28.7]} 0-1